[Event "*** Titled Tuesday Blitz"]
[Site "Chess.com"]
[Date "2020.04.14"]
[Round "2"]
[White "blazingbanana"]
[Black "terrapin33"]
[Result "0-1"]
[WhiteElo "2393"]
[BlackElo "2154"]
[TimeControl "180+1"]
[EndTime "10:17:56 PDT"]
[Termination "terrapin33 won by resignation"]

1. d4 {[%clk 0:03:00.9]} 1... Nc6 {[%clk 0:02:56]} 2. c4 {[%clk 0:03:00.6]} 2...
e5 {[%clk 0:02:55.5]} 3. d5 {[%clk 0:03:00.4]} 3... Nce7 {[%clk 0:02:55.5]} 4.
Nc3 {[%clk 0:03:00.7]} 4... Ng6 {[%clk 0:02:55.5]} 5. e4 {[%clk 0:03:00.9]} 5...
Bc5 {[%clk 0:02:55.9]} 6. Nf3 {[%clk 0:02:58.9]} 6... Nf6 {[%clk 0:02:56.1]} 7.
Be2 {[%clk 0:02:57.3]} 7... O-O {[%clk 0:02:55.5]} 8. Bg5 {[%clk 0:02:57.3]}
8... d6 {[%clk 0:02:53.7]} 9. Qd2 {[%clk 0:02:56.5]} 9... h6 {[%clk 0:02:53.4]}
10. Be3 {[%clk 0:02:55.7]} 10... Bb6 {[%clk 0:02:51.9]} 11. O-O-O {[%clk
0:02:54.9]} 11... Ng4 {[%clk 0:02:51.3]} 12. g3 {[%clk 0:02:53.8]} 12... Nxf2
{[%clk 0:02:47.5]} 13. Bxf2 {[%clk 0:02:51.4]} 13... Bxf2 {[%clk 0:02:47.4]} 14.
Rdf1 {[%clk 0:02:50.9]} 14... Bc5 {[%clk 0:02:42.3]} 15. h4 {[%clk 0:02:49]}
15... Ne7 {[%clk 0:01:56.4]} 16. h5 {[%clk 0:02:47.4]} 16... f5 {[%clk
0:01:56.1]} 17. Nh4 {[%clk 0:02:47]} 17... f4 {[%clk 0:01:53.5]} 18. gxf4 {[%clk
0:02:46]} 18... exf4 {[%clk 0:01:53.4]} 19. Rxf4 {[%clk 0:02:45.6]} 19... Rxf4
{[%clk 0:01:40.6]} 20. Qxf4 {[%clk 0:02:46.5]} 20... Qf8 {[%clk 0:01:30.7]} 21.
Qxf8+ {[%clk 0:02:41]} 21... Kxf8 {[%clk 0:01:30.1]} 22. Rf1+ {[%clk 0:02:41.9]}
22... Kg8 {[%clk 0:01:29.8]} 23. Kc2 {[%clk 0:02:41.1]} 23... Bd7 {[%clk
0:01:28]} 24. a3 {[%clk 0:02:30.9]} 24... a6 {[%clk 0:01:24.2]} 25. Ng6 {[%clk
0:02:07.8]} 25... Nxg6 {[%clk 0:01:17.7]} 26. hxg6 {[%clk 0:02:08.7]} 26... Rf8
{[%clk 0:01:15.2]} 27. Rf3 {[%clk 0:01:50.1]} 27... Rxf3 {[%clk 0:01:11.4]} 28.
Bxf3 {[%clk 0:01:49.5]} 28... Kf8 {[%clk 0:01:09.5]} 29. Kd3 {[%clk 0:01:47.8]}
29... Ke7 {[%clk 0:01:05.5]} 30. Ne2 {[%clk 0:01:34.3]} 30... Kf6 {[%clk
0:01:03.3]} 31. Nf4 {[%clk 0:01:32.4]} 31... Kg5 {[%clk 0:00:58.6]} 32. Ne6+
{[%clk 0:01:30]} 32... Bxe6 {[%clk 0:00:52.7]} 33. dxe6 {[%clk 0:01:30.9]} 33...
Kxg6 {[%clk 0:00:52.5]} 34. Bg4 {[%clk 0:01:22.3]} 34... Kf6 {[%clk 0:00:49.2]}
35. Ke2 {[%clk 0:01:19.5]} 35... g6 {[%clk 0:00:48.3]} 36. Kf3 {[%clk
0:01:18.5]} 36... h5 {[%clk 0:00:47]} 37. Bh3 {[%clk 0:01:17.8]} 37... g5 {[%clk
0:00:46.9]} 38. Bf5 {[%clk 0:01:17.1]} 38... a5 {[%clk 0:00:43.8]} 39. Kg3
{[%clk 0:01:14.4]} 39... a4 {[%clk 0:00:43.5]} 40. e5+ {[%clk 0:00:59.8]} 40...
dxe5 {[%clk 0:00:42.5]} 41. Bc2 {[%clk 0:00:59.7]} 41... Bd4 {[%clk 0:00:26.8]}
42. Bxa4 {[%clk 0:00:59.7]} 42... Bxb2 {[%clk 0:00:27.2]} 43. Bd7 {[%clk
0:00:59]} 43... Bxa3 {[%clk 0:00:27.5]} 44. Kf3 {[%clk 0:00:57.4]} 44... g4+
{[%clk 0:00:26.6]} 45. Ke4 {[%clk 0:00:56.5]} 45... Bc1 {[%clk 0:00:25.9]} 46.
Be8 {[%clk 0:00:54.9]} 46... h4 {[%clk 0:00:25.6]} 47. Bh5 {[%clk 0:00:52.7]}
47... g3 {[%clk 0:00:21.4]} 48. Bf3 {[%clk 0:00:50.9]} 48... Kxe6 {[%clk
0:00:21.5]} 49. Bg2 {[%clk 0:00:50.4]} 49... Bf4 {[%clk 0:00:21.1]} 50. Bh3+
{[%clk 0:00:49.9]} 50... Kd6 {[%clk 0:00:21.3]} 51. Kd3 {[%clk 0:00:49.5]} 51...
Kc5 {[%clk 0:00:21.6]} 52. Bg2 {[%clk 0:00:49]} 52... c6 {[%clk 0:00:21.9]} 53.
Bh3 {[%clk 0:00:48.7]} 53... b5 {[%clk 0:00:22.1]} 54. cxb5 {[%clk 0:00:47.5]}
54... cxb5 {[%clk 0:00:23]} 55. Bg2 {[%clk 0:00:44.4]} 55... b4 {[%clk
0:00:23.4]} 56. Kc2 {[%clk 0:00:44.2]} 56... Kc4 {[%clk 0:00:23.8]} 57. Bh3
{[%clk 0:00:43.1]} 57... e4 {[%clk 0:00:22.4]} 58. Bg2 {[%clk 0:00:42.1]} 58...
e3 {[%clk 0:00:22.3]} 59. Kd1 {[%clk 0:00:41.7]} 59... b3 {[%clk 0:00:21.7]} 60.
Ke2 {[%clk 0:00:42.6]} 60... b2 {[%clk 0:00:21.8]} 61. Be4 {[%clk 0:00:43.2]}
61... b1=Q {[%clk 0:00:22.4]} 62. Bxb1 {[%clk 0:00:41.8]} 62... h3 {[%clk
0:00:22.6]} 63. Be4 {[%clk 0:00:41]} 63... g2 {[%clk 0:00:22.9]} 64. Bxg2 {[%clk
0:00:40.4]} 64... hxg2 {[%clk 0:00:23.8]} 65. Kf3 {[%clk 0:00:40.8]} 65... Kd3
{[%clk 0:00:24.5]} 66. Kxf4 {[%clk 0:00:41.2]} 66... Kd2 {[%clk 0:00:25.4]} 67.
Kf3 {[%clk 0:00:40.2]} 67... e2 {[%clk 0:00:26.3]} 68. Kxg2 {[%clk 0:00:41.1]}
68... e1=Q {[%clk 0:00:26.5]} 69. Kh3 {[%clk 0:00:41.6]} 69... Qg1 {[%clk
0:00:26.4]} 70. Kh4 {[%clk 0:00:41]} 70... Ke3 {[%clk 0:00:27.3]} 0-1

[Event "*** Titled Tuesday Blitz"]
[Site "Chess.com"]
[Date "2020.04.14"]
[Round "2"]
[White "NTBT_DHS"]
[Black "Revnov"]
[Result "1-0"]
[WhiteElo "2564"]
[BlackElo "2766"]
[TimeControl "180+1"]
[EndTime "10:17:57 PDT"]
[Termination "NTBT_DHS won by resignation"]

1. d4 {[%clk 0:03:00.9]} 1... e6 {[%clk 0:02:58.4]} 2. c4 {[%clk 0:03:01.1]}
2... Bb4+ {[%clk 0:02:56.7]} 3. Nc3 {[%clk 0:02:59.5]} 3... f5 {[%clk
0:02:55.1]} 4. Nf3 {[%clk 0:02:57.5]} 4... Nf6 {[%clk 0:02:55.4]} 5. Bd2 {[%clk
0:02:55.8]} 5... O-O {[%clk 0:02:55.2]} 6. Qc2 {[%clk 0:02:54.1]} 6... d6 {[%clk
0:02:52.7]} 7. e3 {[%clk 0:02:53.2]} 7... b6 {[%clk 0:02:49.3]} 8. g3 {[%clk
0:02:50.7]} 8... Bb7 {[%clk 0:02:47.4]} 9. Bg2 {[%clk 0:02:51.2]} 9... Qe7
{[%clk 0:02:45.3]} 10. O-O {[%clk 0:02:49.7]} 10... Nbd7 {[%clk 0:02:42]} 11.
Rad1 {[%clk 0:02:49.4]} 11... Bxc3 {[%clk 0:02:37.9]} 12. Bxc3 {[%clk
0:02:49.3]} 12... Be4 {[%clk 0:02:37.9]} 13. Qc1 {[%clk 0:02:49.7]} 13... a5
{[%clk 0:02:38.1]} 14. Rfe1 {[%clk 0:02:47.7]} 14... Rae8 {[%clk 0:02:32.4]} 15.
a3 {[%clk 0:02:40.1]} 15... a4 {[%clk 0:02:28.1]} 16. Nd2 {[%clk 0:02:33.3]}
16... Bxg2 {[%clk 0:02:27.2]} 17. Kxg2 {[%clk 0:02:34.2]} 17... Qd8 {[%clk
0:02:25.3]} 18. Qc2 {[%clk 0:02:32.7]} 18... Qa8+ {[%clk 0:02:24.8]} 19. f3
{[%clk 0:02:31.3]} 19... c5 {[%clk 0:02:12.2]} 20. d5 {[%clk 0:02:19]} 20...
exd5 {[%clk 0:02:09.5]} 21. Qxf5 {[%clk 0:02:10.1]} 21... Ne5 {[%clk 0:02:00.9]}
22. Bxe5 {[%clk 0:02:01.3]} 22... Rxe5 {[%clk 0:01:59.6]} 23. Qd3 {[%clk
0:01:54.1]} 23... Rfe8 {[%clk 0:01:55.1]} 24. cxd5 {[%clk 0:01:51.4]} 24... Rxd5
{[%clk 0:01:43.6]} 25. Qc3 {[%clk 0:01:51.6]} 25... b5 {[%clk 0:01:36.2]} 26. e4
{[%clk 0:01:48.1]} 26... Rde5 {[%clk 0:01:31.1]} 27. Nf1 {[%clk 0:01:28.4]}
27... Qc6 {[%clk 0:01:14.7]} 28. Ne3 {[%clk 0:01:13]} 28... h5 {[%clk
0:01:02.7]} 29. Qd2 {[%clk 0:01:06.5]} 29... R8e6 {[%clk 0:00:56.3]} 30. Nf5
{[%clk 0:01:00.7]} 30... d5 {[%clk 0:00:45.5]} 31. exd5 {[%clk 0:00:57.7]} 31...
Rxd5 {[%clk 0:00:44.1]} 32. Qg5 {[%clk 0:00:46.5]} 32... Ne8 {[%clk 0:00:27]}
33. Rxe6 {[%clk 0:00:32.4]} 33... Qxe6 {[%clk 0:00:19.1]} 34. Rxd5 {[%clk
0:00:31]} 34... Qe2+ {[%clk 0:00:15.2]} 35. Kh3 {[%clk 0:00:31.1]} 35... Qf1+
{[%clk 0:00:12.3]} 36. Kh4 {[%clk 0:00:31.1]} 36... Qg2 {[%clk 0:00:12.4]} 37.
Ne7+ {[%clk 0:00:28.8]} 37... Kf8 {[%clk 0:00:09.3]} 38. Rf5+ {[%clk 0:00:28.1]}
38... Nf6 {[%clk 0:00:08.2]} 39. Rxf6+ {[%clk 0:00:28.5]} 39... gxf6 {[%clk
0:00:09.1]} 40. Qxf6+ {[%clk 0:00:29.4]} 40... Ke8 {[%clk 0:00:09.3]} 41. Nf5
{[%clk 0:00:20.4]} 41... Qxh2+ {[%clk 0:00:08]} 42. Kg5 {[%clk 0:00:20.9]} 42...
Qe2 {[%clk 0:00:08.2]} 43. f4 {[%clk 0:00:21.3]} 43... b4 {[%clk 0:00:07.9]} 44.
Qc6+ {[%clk 0:00:19.8]} 44... Kf7 {[%clk 0:00:05.9]} 45. Qd5+ {[%clk 0:00:19.7]}
45... Kf8 {[%clk 0:00:06.1]} 46. Qd6+ {[%clk 0:00:18.4]} 46... Kf7 {[%clk
0:00:06.2]} 47. Nh6+ {[%clk 0:00:16.4]} 47... Ke8 {[%clk 0:00:05.8]} 48. Qc6+
{[%clk 0:00:14.8]} 48... Kf8 {[%clk 0:00:04.5]} 49. Qxc5+ {[%clk 0:00:15.2]}
49... Ke8 {[%clk 0:00:03.2]} 50. Qe5+ {[%clk 0:00:15.1]} 1-0

[Event "*** Titled Tuesday Blitz"]
[Site "Chess.com"]
[Date "2020.04.14"]
[Round "2"]
[White "kleinebeer98"]
[Black "davidkalashian"]
[Result "1/2-1/2"]
[WhiteElo "2707"]
[BlackElo "2514"]
[TimeControl "180+1"]
[EndTime "10:17:58 PDT"]
[Termination "Game drawn - timeout vs insufficient material"]

1. e4 {[%clk 0:02:59.6]} 1... c6 {[%clk 0:02:59.7]} 2. Nf3 {[%clk 0:02:58.3]}
2... g6 {[%clk 0:03:00.6]} 3. Nc3 {[%clk 0:02:59.2]} 3... Bg7 {[%clk 0:03:00.4]}
4. Bc4 {[%clk 0:02:54.6]} 4... d6 {[%clk 0:02:59.3]} 5. Bb3 {[%clk 0:02:51.2]}
5... Nf6 {[%clk 0:02:59.5]} 6. d4 {[%clk 0:02:48.1]} 6... O-O {[%clk 0:02:59.2]}
7. O-O {[%clk 0:02:46.6]} 7... Qc7 {[%clk 0:02:58.8]} 8. h3 {[%clk 0:02:45.6]}
8... e5 {[%clk 0:02:56.9]} 9. Re1 {[%clk 0:02:43.5]} 9... Nbd7 {[%clk
0:02:49.2]} 10. a4 {[%clk 0:02:43]} 10... exd4 {[%clk 0:02:42.6]} 11. Nxd4
{[%clk 0:02:41.4]} 11... Nc5 {[%clk 0:02:43]} 12. Ba2 {[%clk 0:02:39.5]} 12...
Re8 {[%clk 0:02:41.3]} 13. Qf3 {[%clk 0:02:30.8]} 13... Ne6 {[%clk 0:02:34.4]}
14. Be3 {[%clk 0:02:24.5]} 14... Nd7 {[%clk 0:01:53.6]} 15. Nxe6 {[%clk
0:02:12.7]} 15... fxe6 {[%clk 0:01:54.5]} 16. Rad1 {[%clk 0:02:11.3]} 16... Ne5
{[%clk 0:01:44.5]} 17. Qg3 {[%clk 0:02:11]} 17... b6 {[%clk 0:01:32.1]} 18. Bd4
{[%clk 0:02:04.2]} 18... Ba6 {[%clk 0:01:28.5]} 19. f4 {[%clk 0:01:53.8]} 19...
Nf7 {[%clk 0:01:27.8]} 20. Bxg7 {[%clk 0:01:34]} 20... Kxg7 {[%clk 0:01:28.7]}
21. f5 {[%clk 0:01:34.5]} 21... exf5 {[%clk 0:01:17.8]} 22. exf5 {[%clk
0:01:35.4]} 22... Ne5 {[%clk 0:01:17.6]} 23. Ne4 {[%clk 0:01:23.3]} 23... Rad8
{[%clk 0:01:15.5]} 24. Ng5 {[%clk 0:01:16.3]} 24... Bc8 {[%clk 0:01:08.5]} 25.
Qh4 {[%clk 0:01:03.7]} 25... h5 {[%clk 0:00:54.4]} 26. fxg6 {[%clk 0:00:41.8]}
26... Kxg6 {[%clk 0:00:47]} 27. Qg3 {[%clk 0:00:37.6]} 27... Kh6 {[%clk
0:00:35.1]} 28. c3 {[%clk 0:00:24.2]} 28... Qg7 {[%clk 0:00:28.4]} 29. Rxe5
{[%clk 0:00:21.1]} 29... dxe5 {[%clk 0:00:15.2]} 30. Rxd8 {[%clk 0:00:22]} 30...
Rxd8 {[%clk 0:00:13.2]} 31. Nf7+ {[%clk 0:00:21.8]} 31... Kh7 {[%clk 0:00:14.1]}
32. Qxg7+ {[%clk 0:00:21.2]} 32... Kxg7 {[%clk 0:00:15]} 33. Nxd8 {[%clk
0:00:22.1]} 33... Bd7 {[%clk 0:00:15.4]} 34. Nxc6 {[%clk 0:00:22.4]} 34... Bxc6
{[%clk 0:00:15]} 35. b3 {[%clk 0:00:19.5]} 35... Kf6 {[%clk 0:00:15.9]} 36. Kf2
{[%clk 0:00:19.5]} 36... Kf5 {[%clk 0:00:16.6]} 37. Bb1+ {[%clk 0:00:18.3]}
37... e4 {[%clk 0:00:17.5]} 38. Ke3 {[%clk 0:00:18]} 38... Ke5 {[%clk
0:00:18.4]} 39. g3 {[%clk 0:00:16.3]} 39... Bd7 {[%clk 0:00:18.3]} 40. Bxe4
{[%clk 0:00:13.5]} 40... Be6 {[%clk 0:00:19.2]} 41. b4 {[%clk 0:00:12.4]} 41...
Bxh3 {[%clk 0:00:19.4]} 42. Bf3 {[%clk 0:00:12.7]} 42... Bd7 {[%clk 0:00:19]}
43. Bxh5 {[%clk 0:00:05.5]} 43... Bxa4 {[%clk 0:00:17.9]} 44. Bf3 {[%clk
0:00:04.2]} 44... Bb3 {[%clk 0:00:17.9]} 45. g4 {[%clk 0:00:04]} 45... a5 {[%clk
0:00:17.9]} 46. bxa5 {[%clk 0:00:03.6]} 46... bxa5 {[%clk 0:00:18.8]} 47. Bc6
{[%clk 0:00:03.4]} 47... a4 {[%clk 0:00:19.7]} 48. Bxa4 {[%clk 0:00:01.8]} 48...
Bxa4 {[%clk 0:00:20.6]} 1/2-1/2

[Event "*** Titled Tuesday Blitz"]
[Site "Chess.com"]
[Date "2020.04.14"]
[Round "2"]
[White "HouseOfDurin"]
[Black "Mimsychess"]
[Result "1-0"]
[WhiteElo "2066"]
[BlackElo "2369"]
[TimeControl "180+1"]
[EndTime "10:18:01 PDT"]
[Termination "HouseOfDurin won on time"]

1. d4 {[%clk 0:03:00.9]} 1... Nf6 {[%clk 0:02:59.4]} 2. Bg5 {[%clk 0:03:01.2]}
2... e6 {[%clk 0:02:52.9]} 3. e4 {[%clk 0:03:00.2]} 3... h6 {[%clk 0:02:52.8]}
4. Bxf6 {[%clk 0:03:00]} 4... Qxf6 {[%clk 0:02:53.7]} 5. e5 {[%clk 0:03:00.6]}
5... Qd8 {[%clk 0:02:52.6]} 6. f4 {[%clk 0:03:00.9]} 6... d6 {[%clk 0:02:50.7]}
7. Nf3 {[%clk 0:03:00.8]} 7... Nd7 {[%clk 0:02:47.6]} 8. c3 {[%clk 0:02:48.3]}
8... Be7 {[%clk 0:02:44.5]} 9. Nbd2 {[%clk 0:02:46.9]} 9... dxe5 {[%clk
0:02:35.1]} 10. dxe5 {[%clk 0:02:34]} 10... O-O {[%clk 0:02:33]} 11. Qc2 {[%clk
0:02:33.7]} 11... a5 {[%clk 0:02:29.7]} 12. O-O-O {[%clk 0:02:22.8]} 12... Qe8
{[%clk 0:02:27.1]} 13. g4 {[%clk 0:02:08.4]} 13... Nb6 {[%clk 0:02:11]} 14. Qe4
{[%clk 0:01:57.2]} 14... Bd7 {[%clk 0:02:06.7]} 15. Bd3 {[%clk 0:01:56.5]} 15...
g6 {[%clk 0:02:07]} 16. Nd4 {[%clk 0:01:48.6]} 16... Bc6 {[%clk 0:01:46]} 17.
Nxc6 {[%clk 0:01:47.5]} 17... Qxc6 {[%clk 0:01:45.1]} 18. Qxc6 {[%clk 0:01:47]}
18... bxc6 {[%clk 0:01:44.4]} 19. f5 {[%clk 0:01:44.1]} 19... Bg5 {[%clk
0:01:37.4]} 20. Kc2 {[%clk 0:01:02.5]} 20... Nd5 {[%clk 0:01:34.1]} 21. Nc4
{[%clk 0:00:55.4]} 21... Ne3+ {[%clk 0:01:16.3]} 22. Nxe3 {[%clk 0:00:54.8]}
22... Bxe3 {[%clk 0:01:17.2]} 23. Rhf1 {[%clk 0:00:42.2]} 23... g5 {[%clk
0:01:08.4]} 24. fxe6 {[%clk 0:00:40.3]} 24... fxe6 {[%clk 0:01:07]} 25. Be4
{[%clk 0:00:39.8]} 25... Kg7 {[%clk 0:00:59.5]} 26. Bxc6 {[%clk 0:00:36]} 26...
Rad8 {[%clk 0:00:59.3]} 27. Rxf8 {[%clk 0:00:29.8]} 27... Rxf8 {[%clk
0:00:58.2]} 28. Rd7+ {[%clk 0:00:29.1]} 28... Rf7 {[%clk 0:00:56.4]} 29. Rxf7+
{[%clk 0:00:28.5]} 29... Kxf7 {[%clk 0:00:57.3]} 30. Kd3 {[%clk 0:00:25.6]}
30... Bf4 {[%clk 0:00:57.3]} 31. Ke4 {[%clk 0:00:23.7]} 31... Bxh2 {[%clk
0:00:47.9]} 32. b4 {[%clk 0:00:23.5]} 32... axb4 {[%clk 0:00:45.4]} 33. cxb4
{[%clk 0:00:24.4]} 33... Bg1 {[%clk 0:00:45.6]} 34. a4 {[%clk 0:00:23.7]} 34...
Bf2 {[%clk 0:00:45.1]} 35. a5 {[%clk 0:00:20.7]} 35... Be1 {[%clk 0:00:38.8]}
36. a6 {[%clk 0:00:20.3]} 36... Bf2 {[%clk 0:00:38.4]} 37. b5 {[%clk 0:00:20.7]}
37... Ba7 {[%clk 0:00:38.3]} 38. Bb7 {[%clk 0:00:20.5]} 38... Bb6 {[%clk
0:00:36.3]} 39. Bc6 {[%clk 0:00:20.6]} 39... Ke7 {[%clk 0:00:35.9]} 40. Bb7
{[%clk 0:00:20.3]} 40... Kd8 {[%clk 0:00:35.8]} 41. Kd3 {[%clk 0:00:18.3]} 41...
Ba7 {[%clk 0:00:04.2]} 42. Kc4 {[%clk 0:00:18.6]} 42... Bb6 {[%clk 0:00:03.2]}
43. Kb4 {[%clk 0:00:19.1]} 43... Ba7 {[%clk 0:00:04.1]} 44. Ka5 {[%clk
0:00:19.2]} 44... Bb6+ {[%clk 0:00:05]} 45. Kb4 {[%clk 0:00:19.5]} 45... Ba7
{[%clk 0:00:05.6]} 46. Kc4 {[%clk 0:00:19.9]} 46... Bb6 {[%clk 0:00:06.4]} 47.
Bd5 {[%clk 0:00:20.2]} 47... Ba7 {[%clk 0:00:06.2]} 48. Bxe6 {[%clk 0:00:20.4]}
48... Ke7 {[%clk 0:00:06]} 49. Bf5 {[%clk 0:00:20.6]} 49... Bb6 {[%clk
0:00:06.2]} 50. Kd5 {[%clk 0:00:20.9]} 50... Ba7 {[%clk 0:00:06]} 51. Kc6 {[%clk
0:00:20.8]} 51... Bb6 {[%clk 0:00:06.2]} 52. Kb7 {[%clk 0:00:21.1]} 52... Kd8
{[%clk 0:00:05.5]} 53. a7 {[%clk 0:00:21.4]} 53... Bxa7 {[%clk 0:00:05.4]} 54.
Kxa7 {[%clk 0:00:22.3]} 1-0

[Event "*** Titled Tuesday Blitz"]
[Site "Chess.com"]
[Date "2020.04.14"]
[Round "2"]
[White "20ofJuly"]
[Black "lupta_robin"]
[Result "0-1"]
[WhiteElo "2215"]
[BlackElo "2482"]
[TimeControl "180+1"]
[EndTime "10:18:02 PDT"]
[Termination "lupta_robin won by resignation"]

1. e4 {[%clk 0:03:00.9]} 1... g6 {[%clk 0:02:59.9]} 2. d4 {[%clk 0:02:59.9]}
2... Nf6 {[%clk 0:03:00]} 3. Nc3 {[%clk 0:02:47.8]} 3... d5 {[%clk 0:02:59.7]}
4. e5 {[%clk 0:02:42]} 4... Ne4 {[%clk 0:02:59.6]} 5. Nxe4 {[%clk 0:02:20.8]}
5... dxe4 {[%clk 0:02:59.6]} 6. Ne2 {[%clk 0:02:19]} 6... c5 {[%clk 0:02:58]} 7.
c3 {[%clk 0:01:59]} 7... Nc6 {[%clk 0:02:55.4]} 8. Be3 {[%clk 0:01:54.4]} 8...
Bg7 {[%clk 0:02:55.3]} 9. Ng3 {[%clk 0:01:49.4]} 9... cxd4 {[%clk 0:02:53.8]}
10. cxd4 {[%clk 0:01:49.6]} 10... Qa5+ {[%clk 0:02:54.4]} 11. Bd2 {[%clk
0:01:45.6]} 11... Qb6 {[%clk 0:02:44.1]} 12. Bc3 {[%clk 0:01:41.6]} 12... O-O
{[%clk 0:02:44.2]} 13. Qb3 {[%clk 0:01:09.1]} 13... Rd8 {[%clk 0:02:29.2]} 14.
O-O-O {[%clk 0:00:39.9]} 14... Qc7 {[%clk 0:02:15.7]} 15. Bc4 {[%clk 0:00:26.6]}
15... Na5 {[%clk 0:01:58.9]} 16. Bxa5 {[%clk 0:00:24.6]} 16... Qxa5 {[%clk
0:01:59.8]} 17. Bxf7+ {[%clk 0:00:23.3]} 17... Kh8 {[%clk 0:01:59.5]} 18. Kb1
{[%clk 0:00:11.9]} 18... Bg4 {[%clk 0:01:57.8]} 19. Nxe4 {[%clk 0:00:10.6]}
19... Bxd1 {[%clk 0:01:55.6]} 20. Rxd1 {[%clk 0:00:11.5]} 20... Bxe5 {[%clk
0:01:55.3]} 21. dxe5 {[%clk 0:00:08.9]} 21... Qxe5 {[%clk 0:01:51.8]} 22. Ng3
{[%clk 0:00:04.4]} 22... Rxd1+ {[%clk 0:01:48.1]} 23. Qxd1 {[%clk 0:00:05.3]}
23... Kg7 {[%clk 0:01:48.4]} 24. Bb3 {[%clk 0:00:05.1]} 24... Rc8 {[%clk
0:01:43.5]} 25. f3 {[%clk 0:00:05.1]} 25... b5 {[%clk 0:01:34.8]} 26. a3 {[%clk
0:00:05.3]} 26... a5 {[%clk 0:01:34.7]} 27. Qd5 {[%clk 0:00:05.3]} 27... Qe1+
{[%clk 0:01:21]} 28. Ka2 {[%clk 0:00:04.4]} 28... a4 {[%clk 0:01:15.7]} 29. Qf7+
{[%clk 0:00:04.3]} 29... Kh6 {[%clk 0:01:16.2]} 30. Nf5+ {[%clk 0:00:01.5]}
30... gxf5 {[%clk 0:01:13.6]} 31. Be6 {[%clk 0:00:02.1]} 31... Rc7 {[%clk
0:00:36]} 32. Qxf5 {[%clk 0:00:02]} 32... Qh4 {[%clk 0:00:17.9]} 33. Qf8+ {[%clk
0:00:02.3]} 33... Kg6 {[%clk 0:00:14.6]} 34. Qf5+ {[%clk 0:00:02.3]} 34... Kh6
{[%clk 0:00:13.2]} 35. Qf8+ {[%clk 0:00:02.8]} 35... Kg6 {[%clk 0:00:13.2]} 36.
Qf7+ {[%clk 0:00:03.4]} 36... Kg5 {[%clk 0:00:13]} 37. g4 {[%clk 0:00:04]} 37...
Qf2 {[%clk 0:00:11.7]} 38. f4+ {[%clk 0:00:04.3]} 38... Qxf4 {[%clk 0:00:10.1]}
39. Qh5+ {[%clk 0:00:04.9]} 39... Kf6 {[%clk 0:00:10]} 40. Qf7+ {[%clk
0:00:05.5]} 40... Ke5 {[%clk 0:00:10.1]} 41. Qg7+ {[%clk 0:00:05.2]} 41... Qf6
{[%clk 0:00:10.3]} 42. Qxf6+ {[%clk 0:00:03.7]} 42... exf6 {[%clk 0:00:10.7]}
43. Bf5 {[%clk 0:00:04.4]} 43... h5 {[%clk 0:00:09.9]} 44. h3 {[%clk 0:00:04]}
44... h4 {[%clk 0:00:10]} 45. Kb1 {[%clk 0:00:04]} 45... Rc5 {[%clk 0:00:10.2]}
46. Ka1 {[%clk 0:00:04.2]} 46... Kf4 {[%clk 0:00:10.8]} 47. Kb1 {[%clk
0:00:05.1]} 47... Kg3 {[%clk 0:00:11.2]} 48. Ka2 {[%clk 0:00:04.8]} 48... Kxh3
{[%clk 0:00:11.5]} 49. Kb1 {[%clk 0:00:04.9]} 49... Kg3 {[%clk 0:00:11.5]} 50.
Be6 {[%clk 0:00:05.5]} 50... h3 {[%clk 0:00:11.6]} 0-1

[Event "*** Titled Tuesday Blitz"]
[Site "Chess.com"]
[Date "2020.04.14"]
[Round "2"]
[White "Grischuk"]
[Black "Artem_Sadovsky"]
[Result "1-0"]
[WhiteElo "3091"]
[BlackElo "2622"]
[TimeControl "180+1"]
[EndTime "10:18:03 PDT"]
[Termination "Grischuk won by resignation"]

1. Nf3 {[%clk 0:03:00.9]} 1... d5 {[%clk 0:02:53.3]} 2. g3 {[%clk 0:03:00.6]}
2... Nf6 {[%clk 0:02:53.7]} 3. Bg2 {[%clk 0:03:00.6]} 3... Bg4 {[%clk
0:02:53.7]} 4. c4 {[%clk 0:03:00.8]} 4... c6 {[%clk 0:02:53.2]} 5. Ne5 {[%clk
0:03:00.8]} 5... Bf5 {[%clk 0:02:52.4]} 6. cxd5 {[%clk 0:03:00.9]} 6... cxd5
{[%clk 0:02:52.5]} 7. Nc3 {[%clk 0:03:01.5]} 7... e6 {[%clk 0:02:47.3]} 8. Qa4+
{[%clk 0:02:54.3]} 8... Nbd7 {[%clk 0:02:39.8]} 9. g4 {[%clk 0:02:54.1]} 9...
Bg6 {[%clk 0:02:14.8]} 10. h4 {[%clk 0:02:53.5]} 10... h5 {[%clk 0:01:32.6]} 11.
g5 {[%clk 0:02:43.4]} 11... Ng8 {[%clk 0:01:22.8]} 12. Nxd5 {[%clk 0:02:10.4]}
12... exd5 {[%clk 0:01:18.3]} 13. Bh3 {[%clk 0:02:10.2]} 13... Bd6 {[%clk
0:00:50.4]} 14. Qxd7+ {[%clk 0:02:03.1]} 14... Qxd7 {[%clk 0:00:49.3]} 15. Bxd7+
{[%clk 0:02:04]} 15... Ke7 {[%clk 0:00:49]} 16. Nxg6+ {[%clk 0:02:04.7]} 16...
fxg6 {[%clk 0:00:48.6]} 17. Ba4 {[%clk 0:01:57.7]} 17... Ke6 {[%clk 0:00:47.4]}
18. Bb3 {[%clk 0:01:46.3]} 18... Ne7 {[%clk 0:00:48.3]} 19. e3 {[%clk
0:01:31.6]} 19... Rhd8 {[%clk 0:00:34.9]} 20. Ke2 {[%clk 0:01:30.8]} 20... a5
{[%clk 0:00:34.4]} 21. a4 {[%clk 0:01:29.6]} 21... Bb4 {[%clk 0:00:34.3]} 22. d3
{[%clk 0:01:24.1]} 22... Kd6 {[%clk 0:00:33.7]} 23. e4 {[%clk 0:01:07.7]} 23...
Rf8 {[%clk 0:00:24.1]} 24. Be3 {[%clk 0:01:05.7]} 24... Rac8 {[%clk 0:00:18.8]}
25. Rac1 {[%clk 0:01:04.8]} 25... dxe4 {[%clk 0:00:09]} 26. dxe4 {[%clk
0:01:03.2]} 26... Nc6 {[%clk 0:00:08.8]} 27. Rhd1+ {[%clk 0:01:01.7]} 27... Ke7
{[%clk 0:00:08.5]} 28. f4 {[%clk 0:00:59.5]} 28... Rfd8 {[%clk 0:00:08.1]} 29.
e5 {[%clk 0:00:55.4]} 29... Rxd1 {[%clk 0:00:04.3]} 30. Rxd1 {[%clk 0:00:56.3]}
30... Nd8 {[%clk 0:00:04.1]} 31. Rc1 {[%clk 0:00:36.6]} 31... Rxc1 {[%clk
0:00:03.7]} 32. Bxc1 {[%clk 0:00:37.4]} 32... Ne6 {[%clk 0:00:04.6]} 33. Be3
{[%clk 0:00:33.8]} 33... Nc5 {[%clk 0:00:04.1]} 34. Bc2 {[%clk 0:00:32.5]} 34...
Kf7 {[%clk 0:00:04.1]} 35. Bxc5 {[%clk 0:00:25.4]} 35... Bxc5 {[%clk 0:00:04.1]}
36. e6+ {[%clk 0:00:26.3]} 36... Kxe6 {[%clk 0:00:04]} 37. Bxg6 {[%clk
0:00:27.2]} 37... Bd6 {[%clk 0:00:01.9]} 38. Kf3 {[%clk 0:00:27.5]} 38... Bc5
{[%clk 0:00:01.9]} 39. Bxh5 {[%clk 0:00:27.5]} 39... Ke7 {[%clk 0:00:02.2]} 40.
Bg6 {[%clk 0:00:26.9]} 40... Bd4 {[%clk 0:00:03.1]} 41. b3 {[%clk 0:00:26.6]}
41... Bc3 {[%clk 0:00:01.9]} 42. h5 {[%clk 0:00:26.4]} 42... Be1 {[%clk
0:00:02]} 43. Kg4 {[%clk 0:00:26.3]} 43... Bd2 {[%clk 0:00:02.1]} 44. Bd3 {[%clk
0:00:26.1]} 44... b6 {[%clk 0:00:02.5]} 45. Kf5 {[%clk 0:00:26.2]} 45... Bc1
{[%clk 0:00:02.8]} 46. Bc4 {[%clk 0:00:26.4]} 46... Bd2 {[%clk 0:00:03]} 47. Kg4
{[%clk 0:00:21.2]} 47... Bc1 {[%clk 0:00:03.2]} 48. f5 {[%clk 0:00:20.6]} 48...
Bd2 {[%clk 0:00:03.6]} 49. h6 {[%clk 0:00:20.8]} 49... gxh6 {[%clk 0:00:03.4]}
50. f6+ {[%clk 0:00:21.4]} 50... Kd6 {[%clk 0:00:01.3]} 51. g6 {[%clk
0:00:22.3]} 51... Bc3 {[%clk 0:00:01.8]} 52. g7 {[%clk 0:00:22.6]} 1-0